bitfinex-derivatives/quotes_BTCF0:USTF0_20240829
["timestamp","ask_amount","ask_price","bid_price","bid_amount"]
[1724969724943,0.002,59120.0,59113.0,0.00225373]
[1724969725143,0.3608,59123.0,59113.0,0.00225373]
[1724969725144,0.3608,59123.0,59117.0,0.445356]
[1724969725841,0.00025329,59124.0,59117.0,0.084556]
[1724969726945,0.00025329,59124.0,59119.0,0.084553]
[1724969727745,0.00225329,59124.0,59122.0,0.084549]
[1724969727942,0.00225329,59124.0,59123.0,0.3608]
[1724969728240,0.23434441,59132.0,59123.0,0.7908]
[1724969728441,0.3694,59150.0,59131.0,0.3608]
[1724969728442,0.23434441,59144.0,59131.0,0.3608]
[1724969728644,0.3608,59141.0,59137.0,0.084528]
[1724969728851,0.23434441,59144.0,59138.0,0.084526]
[1724969729241,0.23434441,59144.0,59137.0,0.3608]
[1724969729536,0.3608,59138.0,59135.0,0.00025373]
[1724969729735,0.3608,59136.0,59135.0,0.00012464]
[1724969729947,0.084534,59133.0,59117.0,0.3608]
[1724969730145,0.3608,59128.0,59118.0,0.084554]
[1724969730345,0.3608,59123.0,59107.0,0.52348]
[1724969730647,0.3608,59123.0,59121.0,0.08455]
[1724969731538,0.3618,59123.0,59121.0,0.08455]
[1724969732038,0.3608,59123.0,59121.0,0.08455]
[1724969732252,0.3608,59123.0,59121.0,0.08955]
[1724969733541,0.3608,59123.0,59121.0,0.08455]
[1724969734148,0.3618,59123.0,59121.0,0.08455]
[1724969734345,0.3618,59123.0,59116.0,0.00025373]
[1724969734544,0.001,59123.0,59121.0,0.08455]
[1724969734749,0.00025373,59128.0,59122.0,0.084548]
[1724969735337,0.00025373,59128.0,59123.0,0.084548]
[1724969736255,0.3608,59124.0,59121.0,0.002]
[1724969736849,0.00025373,59128.0,59116.0,0.00025373]
[1724969736850,0.00025373,59128.0,59127.0,0.084542]
[1724969737039,0.00125373,59128.0,59127.0,0.084542]
[1724969737646,0.00025373,59128.0,59127.0,0.084542]
[1724969738146,0.00125373,59128.0,59127.0,0.092542]
[1724969738347,0.00225373,59128.0,59127.0,0.092542]
[1724969740147,0.00225373,59128.0,59127.0,0.098542]
[1724969740356,0.00225373,59128.0,59127.0,0.090542]
[1724969740552,0.00125373,59128.0,59127.0,0.091542]
[1724969740753,0.00125373,59128.0,59127.0,0.093542]
[1724969740949,0.00125373,59128.0,59127.0,0.092542]
[1724969741144,0.00225373,59128.0,59127.0,0.099542]
[1724969741657,0.00125373,59128.0,59127.0,0.095542]
[1724969742248,0.00225373,59128.0,59127.0,0.096542]
[1724969742449,0.00012865,59128.0,59127.0,1.203902]
[1724969742761,0.59514441,59148.0,59145.0,0.084516]
[1724969742957,0.08266217,59153.0,59147.0,0.3608]
[1724969743256,0.31700658,59157.0,59151.0,0.37]
[1724969743457,0.23434441,59157.0,59148.0,0.00025373]
[1724969743659,0.08266217,59156.0,59148.0,0.00025373]
[1724969743962,0.3608,59153.0,59148.0,0.00025373]
[1724969744142,0.08266217,59151.0,59148.0,0.00025373]
[1724969744346,0.08266217,59150.0,59148.0,0.00025373]
[1724969744543,0.53460487,59149.0,59133.0,0.084533]
[1724969744847,0.08303279,59144.0,59136.0,0.084529]
[1724969745045,0.44383279,59146.0,59132.0,0.3608]
[1724969745247,0.44383279,59146.0,59137.0,0.084527]
[1724969745647,0.08303279,59145.0,59137.0,0.084527]
[1724969745857,0.44383279,59146.0,59137.0,0.084527]
[1724969746259,0.44383279,59146.0,59138.0,0.084526]
[1724969746457,0.08351276,59145.0,59138.0,0.03787607]
[1724969746651,0.08351276,59144.0,59138.0,0.03787607]
[1724969746852,0.3608,59146.0,59139.0,0.084524]
[1724969746853,0.08351276,59143.0,59139.0,0.084524]
[1724969747161,0.08351276,59142.0,59139.0,0.084524]
[1724969747359,0.08351276,59141.0,59140.0,0.084524]
[1724969747653,0.0825598,59145.0,59140.0,0.084524]
[1724969747855,0.0825197,59144.0,59140.0,0.084524]
[1724969748057,0.08235566,59143.0,59140.0,0.084524]
[1724969748256,0.08235566,59142.0,59140.0,0.084524]
[1724969748467,0.36105373,59147.0,59141.0,0.084522]
[1724969748653,0.08220032,59146.0,59142.0,0.3608]
[1724969748854,0.00025373,59147.0,59146.0,0.084515]
[1724969749056,0.02765752,59147.0,59146.0,0.084515]
[1724969749265,0.12730401,59147.0,59146.0,0.445315]
[1724969749461,0.02765752,59147.0,59146.0,0.445315]
[1724969749649,0.00025373,59147.0,59146.0,0.445315]
[1724969749859,0.08329077,59147.0,59146.0,0.445315]
[1724969750261,0.00025373,59147.0,59146.0,0.445315]
[1724969750579,0.08303704,59154.0,59153.0,0.084505]
[1724969750752,0.08302063,59154.0,59153.0,0.3608]
[1724969750953,0.08302063,59157.0,59155.0,0.084502]
[1724969751159,0.08302063,59161.0,59156.0,0.3608]
[1724969751355,0.09964649,59166.0,59164.0,0.084489]
[1724969751356,0.08302063,59166.0,59164.0,0.084489]
[1724969751559,0.09964649,59171.0,59165.0,0.3608]
[1724969751763,0.08295707,59167.0,59165.0,0.3608]
[1724969751960,0.08295707,59167.0,59165.0,0.806088]
[1724969752161,0.08295707,59169.0,59168.0,0.084484]
[1724969752369,0.08295707,59171.0,59168.0,0.084484]
[1724969752667,0.09964649,59175.0,59170.0,0.3608]
[1724969752966,0.02739002,59174.0,59170.0,0.3608]
[1724969753356,0.23434441,59183.0,59170.0,0.3608]
[1724969753357,0.08282541,59179.0,59170.0,0.3608]
[1724969754159,0.08282541,59179.0,59170.0,0.001]
[1724969754160,0.7168223,59178.0,59170.0,0.001]
[1724969754463,0.08282541,59175.0,59170.0,0.001]
[1724969754864,0.08282541,59174.0,59170.0,0.001]
[1724969755067,0.58982541,59174.0,59170.0,0.001]
[1724969755264,0.44362541,59171.0,59152.0,0.445306]
[1724969755463,0.3608,59166.0,59153.0,0.084504]
[1724969756169,0.3608,59166.0,59152.0,0.3608]
[1724969756875,0.3608,59166.0,59164.0,0.084489]
[1724969757372,0.3608,59171.0,59165.0,0.084488]
[1724969757561,0.002,59166.0,59165.0,0.084488]
[1724969758173,0.08276906,59172.0,59166.0,0.084486]
[1724969758470,0.005,59174.0,59166.0,0.084486]
[1724969758864,0.08276906,59173.0,59166.0,0.084486]
[1724969759064,0.08276906,59172.0,59164.0,0.004]
[1724969759265,0.08276906,59175.0,59166.0,0.3608]
[1724969759466,0.08276906,59176.0,59166.0,0.3608]
[1724969759864,0.08276906,59177.0,59166.0,0.3608]
[1724969760169,0.08276906,59178.0,59166.0,0.3608]
[1724969760379,0.01512906,59181.0,59177.0,0.3608]
[1724969760578,0.3608,59202.0,59177.0,0.3608]
[1724969760579,0.09964649,59203.0,59192.0,0.084449]
[1724969760778,0.084428,59207.0,59194.0,0.3608]
[1724969760971,0.0273797,59206.0,59194.0,0.3608]
[1724969761162,0.0273797,59205.0,59194.0,0.3608]
[1724969761362,0.3608,59196.0,59181.0,0.3608]
[1724969761661,0.09927068,59187.0,59181.0,0.3608]
[1724969762072,0.3608,59190.0,59181.0,0.3608]
[1724969762073,0.12665507,59186.0,59181.0,0.3608]
[1724969762269,0.12665507,59185.0,59181.0,0.084464]
[1724969762577,0.02738439,59184.0,59181.0,0.084464]
[1724969762783,0.02738439,59183.0,59181.0,0.084464]
[1724969763072,0.02738439,59182.0,59181.0,0.084464]
[1724969763375,0.09927068,59186.0,59181.0,0.3608]
[1724969763582,0.02738592,59188.0,59183.0,0.3608]
[1724969763583,0.02738592,59185.0,59183.0,0.3608]
[1724969763778,0.00025276,59189.0,59188.0,0.084455]
[1724969764080,0.00025276,59189.0,59182.0,0.3608]
[1724969764377,0.02738269,59188.0,59187.0,0.3608]
[1724969764571,0.02738362,59188.0,59187.0,0.3608]
[1724969764770,0.00025276,59189.0,59187.0,0.3608]
[1724969765076,0.02738329,59188.0,59187.0,0.3608]
[1724969765478,0.01125276,59189.0,59187.0,0.3608]
[1724969765681,0.01125276,59189.0,59187.0,0.445256]
[1724969766274,0.01125276,59189.0,59188.0,0.86764]
[1724969766771,0.00025276,59189.0,59188.0,1.66084]
[1724969767078,0.06386257,59189.0,59188.0,1.66084]
[1724969767278,0.01425276,59189.0,59188.0,0.554]
[1724969767477,0.01425276,59189.0,59188.0,1.66084]
[1724969767679,0.00025276,59189.0,59188.0,1.66084]
[1724969767875,0.01625276,59189.0,59188.0,1.66184]
[1724969768071,8.8e-07,59193.0,59188.0,2.02184]
[1724969768378,0.05201311,59214.0,59194.0,0.3608]
[1724969768582,0.04954667,59224.0,59213.0,0.7208]
[1724969768772,0.04954667,59226.0,59223.0,0.36]
[1724969768970,0.04954667,59227.0,59223.0,0.36]
[1724969769483,0.06606236,59236.0,59226.0,0.3608]
[1724969769687,0.04956535,59242.0,59238.0,0.084383]
[1724969769874,0.04956535,59247.0,59241.0,0.36]
[1724969770281,0.04956535,59247.0,59231.0,0.084393]
[1724969770282,0.3608,59243.0,59225.0,0.3608]
[1724969770596,0.3608,59243.0,59221.0,0.36]
[1724969770597,0.3608,59234.0,59223.0,0.001]
[1724969770980,0.3608,59229.0,59223.0,0.001]
[1724969771286,0.3608,59229.0,59227.0,0.36]
[1724969771478,0.3608,59231.0,59220.0,0.36025328]
[1724969771674,0.3608,59224.0,59220.0,0.00025328]
[1724969771889,0.7216,59224.0,59220.0,0.00025328]
[1724969772093,0.50656,59223.0,59220.0,0.00025328]
[1724969772283,0.50656,59222.0,59220.0,0.00025328]
[1724969772478,0.6,59222.0,59220.0,0.00025328]
[1724969772683,0.00232,59223.0,59220.0,0.00025328]
[1724969772885,0.00232,59224.0,59223.0,0.001]
[1724969773184,0.3608,59229.0,59223.0,0.001]
[1724969773391,0.3608,59224.0,59223.0,0.001]
[1724969773778,0.50656,59223.0,59196.0,0.7908]
[1724969773981,0.3608,59205.0,59196.0,0.3608]
[1724969774790,0.00025328,59206.0,59199.0,0.3608]
[1724969774986,0.00025328,59206.0,59203.0,0.43]
[1724969775190,0.00025328,59206.0,59205.0,0.445231]
[1724969775882,0.00025328,59206.0,59205.0,1.551951]
[1724969776084,0.3608,59223.0,59212.0,0.08442]
[1724969776283,0.3608,59228.0,59213.0,0.7908]
[1724969776489,0.3608,59228.0,59213.0,0.875218]
[1724969776688,0.3608,59228.0,59214.0,0.084418]
[1724969776889,0.3608,59222.0,59213.0,0.7908]
[1724969777086,0.3608,59222.0,59215.0,0.00025328]
[1724969777590,0.00025254,59226.0,59221.0,0.43]
[1724969779191,0.084407,59222.0,59215.0,0.00025328]
[1724969779391,0.3608,59218.0,59215.0,0.00025328]
[1724969780392,0.3608,59218.0,59215.0,0.00325328]
[1724969780694,0.3638,59218.0,59215.0,0.00325328]
[1724969781192,0.3638,59218.0,59200.0,0.1941]
[1724969781193,0.3608,59216.0,59197.0,0.084442]
[1724969781497,0.3608,59200.0,59192.0,0.084449]
[1724969781691,0.3608,59195.0,59192.0,0.084449]
[1724969781891,0.3608,59194.0,59192.0,0.084449]
[1724969782092,0.3608,59211.0,59193.0,0.3608]
[1724969782293,0.00025328,59208.0,59199.0,0.3608]
[1724969782495,0.36005328,59211.0,59206.0,0.084429]
[1724969782701,0.35905328,59211.0,59199.0,0.3608]
[1724969782893,0.3698,59218.0,59209.0,0.084425]
[1724969783389,0.001,59211.0,59199.0,0.3608]
[1724969783589,0.3608,59206.0,59199.0,0.3608]
[1724969783788,0.084434,59203.0,59199.0,0.3608]
[1724969783985,0.084434,59203.0,59196.0,0.00025328]
[1724969783986,0.3608,59200.0,59194.0,0.084446]
[1724969784198,0.3608,59195.0,59194.0,0.084446]
[1724969784495,0.3608,59200.0,59189.0,0.7908]
[1724969784890,0.3608,59200.0,59195.0,0.084445]
[1724969785799,0.3608,59200.0,59199.0,0.002]
[1724969786295,0.3608,59200.0,59199.0,0.001]
[1724969786601,0.3728,59200.0,59198.0,0.08444]
[1724969786803,0.3728,59200.0,59195.0,0.001]
[1724969786984,0.3728,59200.0,59199.0,0.001]
[1724969787388,0.9668,59200.0,59199.0,0.001]
[1724969787588,0.9718,59200.0,59199.0,0.001]
[1724969787788,0.9778,59200.0,59199.0,0.002]
[1724969787990,1.48456,59200.0,59192.0,0.00025328]
[1724969788198,0.084457,59187.0,59179.0,0.084467]
[1724969788389,0.3608,59183.0,59181.0,0.084465]
[1724969788690,0.59746441,59194.0,59188.0,0.084455]
[1724969788896,0.3608,59189.0,59188.0,0.084455]
[1724969789094,0.3608,59189.0,59183.0,0.00025328]
[1724969789298,0.3608,59184.0,59183.0,0.00025328]
[1724969789503,0.3598,59184.0,59183.0,0.00025328]
[1724969789801,0.3588,59184.0,59183.0,0.00025328]
[1724969790200,0.04970828,59186.0,59183.0,0.00025328]
[1724969790393,0.3608,59184.0,59183.0,0.00025328]
[1724969790589,0.3608,59184.0,59183.0,0.002]
[1724969790790,0.3608,59184.0,59163.0,0.084489]
[1724969790791,0.084474,59175.0,59163.0,0.084489]
[1724969790993,0.084474,59175.0,59161.0,0.43]
[1724969790994,0.3608,59168.0,59161.0,0.43]
[1724969791197,0.3608,59168.0,59166.0,0.084486]
[1724969791403,0.3608,59179.0,59173.0,0.084475]
[1724969791601,0.3608,59179.0,59167.0,0.3608]
[1724969791602,0.3608,59179.0,59177.0,0.08447]
[1724969791900,0.3608,59179.0,59170.0,0.4302535]
[1724969792398,0.3598,59179.0,59170.0,0.4302535]
[1724969792603,0.0002535,59182.0,59172.0,0.3608]
[1724969793002,0.0002535,59182.0,59177.0,0.001]
[1724969793003,0.01,59179.0,59177.0,0.001]
[1724969793395,0.0002535,59182.0,59177.0,0.3608]
[1724969793609,0.003,59179.0,59177.0,0.3608]
[1724969793906,0.003,59179.0,59177.0,0.44527]
[1724969794094,0.01,59179.0,59177.0,0.44627]
[1724969794297,0.01,59179.0,59177.0,0.08547]
[1724969794495,0.3608,59206.0,59178.0,0.7908]
[1724969794696,0.00232,59195.0,59194.0,0.084446]
[1724969794903,0.3608,59206.0,59193.0,0.084447]
[1724969795091,0.3608,59206.0,59196.0,0.084443]
[1724969795291,0.3608,59206.0,59198.0,0.084441]
[1724969795495,0.3608,59206.0,59199.0,0.084439]
[1724969795901,0.3608,59206.0,59200.0,0.084437]
[1724969796300,0.3608,59206.0,59201.0,0.084435]
[1724969796501,0.0002535,59208.0,59201.0,0.084435]
[1724969796700,0.0002535,59208.0,59202.0,0.084434]
[1724969796901,0.0002535,59208.0,59200.0,0.3608]
[1724969796902,0.006,59206.0,59205.0,0.3608]
[1724969797101,0.01,59206.0,59196.0,0.0002535]
[1724969797296,0.3608,59202.0,59197.0,0.084442]
[1724969798005,0.3598,59202.0,59198.0,0.08444]
[1724969798803,0.3598,59202.0,59201.0,0.001]
[1724969799202,0.50676,59201.0,59177.0,0.3608]
[1724969799407,0.06621255,59183.0,59177.0,0.3608]
[1724969799601,0.06621255,59179.0,59178.0,0.084469]
[1724969799805,0.08276569,59185.0,59181.0,0.084464]
[1724969800008,0.08276569,59185.0,59177.0,0.3608]
[1724969800209,0.08176569,59188.0,59186.0,0.084458]
[1724969800505,0.0002535,59189.0,59188.0,0.084455]
[1724969800708,0.02763886,59189.0,59188.0,0.084455]
[1724969801411,0.02763886,59189.0,59188.0,0.514455]
[1724969801611,0.08308311,59191.0,59190.0,0.084452]
[1724969801812,0.09968998,59196.0,59190.0,0.084452]
[1724969801813,0.08308311,59192.0,59190.0,0.084452]
[1724969802211,1.1e-07,59191.0,59190.0,0.168904]
[1724969802515,0.3608,59212.0,59191.0,0.591251]
[1724969802516,0.05146046,59195.0,59191.0,0.591251]
[1724969802708,0.0002535,59199.0,59194.0,0.7908]
[1724969802906,0.0002535,59199.0,59198.0,0.445241]
[1724969803415,0.0002535,59199.0,59198.0,1.552001]
[1724969803599,0.0002535,59199.0,59198.0,0.952001]
[1724969804002,0.0032535,59199.0,59198.0,0.952001]
[1724969805309,0.0032535,59199.0,59198.0,0.445241]
[1724969805518,0.0032535,59199.0,59198.0,0.3608]
[1724969805812,0.03063419,59199.0,59194.0,0.001]
[1724969806116,0.0032535,59199.0,59194.0,0.001]
[1724969806317,0.0032535,59199.0,59187.0,0.0002535]
[1724969806505,0.09968998,59207.0,59196.0,0.3608]
[1724969806707,0.09969019,59225.0,59224.0,0.084404]
[1724969806911,0.2006,59241.0,59224.0,0.875204]
[1724969806912,0.09969019,59239.0,59224.0,0.875204]
[1724969807101,0.2006,59241.0,59230.0,0.3608]
[1724969807102,0.02736553,59238.0,59230.0,0.3608]
[1724969807301,0.2006,59241.0,59230.0,0.3608]
[1724969807503,0.02736425,59240.0,59230.0,0.3608]
[1724969807717,0.3608,59232.0,59219.0,0.44521]
[1724969808018,0.20085323,59241.0,59225.0,0.43]
[1724969808019,0.3608,59237.0,59225.0,0.43]
[1724969808211,0.02736667,59236.0,59225.0,0.43]
[1724969808406,0.3608,59231.0,59230.0,0.001]
[1724969808607,0.89464997,59231.0,59230.0,0.001]
[1724969808812,0.3608,59231.0,59230.0,0.001]
[1724969809312,0.09969019,59240.0,59230.0,0.3618]
[1724969809520,0.09969019,59245.0,59237.0,0.3608]
[1724969810014,0.084376,59244.0,59237.0,0.3608]
[1724969810715,0.00025323,59241.0,59237.0,0.3608]
[1724969811015,0.00625323,59241.0,59237.0,0.3628]
[1724969811912,0.00625323,59241.0,59237.0,0.447185]
[1724969812120,0.00625323,59241.0,59237.0,0.3628]
[1724969812310,0.084382,59239.0,59237.0,0.002]
[1724969812509,0.00244001,59240.0,59237.0,0.002]
[1724969812719,0.50644,59240.0,59237.0,0.002]
[1724969813108,0.00625323,59241.0,59238.0,0.3608]
[1724969813410,0.009,59239.0,59238.0,0.3608]
[1724969814210,0.03636277,59239.0,59238.0,0.3608]
[1724969814520,0.009,59239.0,59238.0,0.3618]
[1724969814721,0.51544,59239.0,59238.0,0.3618]
[1724969815417,0.01125323,59241.0,59238.0,0.3628]
[1724969816015,0.011,59239.0,59238.0,0.3628]
[1724969816316,0.084389,59235.0,59227.0,0.084399]
[1724969816521,0.3608,59230.0,59225.0,0.00025323]
[1724969817512,0.084391,59233.0,59228.0,0.084398]
[1724969817713,0.02736803,59232.0,59228.0,0.084398]
[1724969818131,0.4085,59238.0,59225.0,0.00125323]
[1724969818132,0.11094342,59241.0,59231.0,0.3608]
[1724969818424,0.02736524,59240.0,59231.0,0.3608]
[1724969818624,0.084385,59237.0,59233.0,0.08439]
[1724969818920,0.47406342,59241.0,59231.0,0.3608]
[1724969818921,0.02736524,59236.0,59231.0,0.3608]
[1724969819223,0.08439,59234.0,59231.0,0.3608]
[1724969819716,0.590871,59233.0,59231.0,0.3608]
[1724969820113,0.590871,59233.0,59225.0,0.00125323]
[1724969820114,0.53384798,59232.0,59225.0,0.00125323]
[1724969820315,0.084399,59227.0,59225.0,0.00025323]
[1724969820510,0.3608,59230.0,59225.0,0.08465523]
[1724969820712,0.02736951,59229.0,59225.0,0.08465523]
[1724969820921,0.084399,59227.0,59225.0,0.08465523]
[1724969821124,0.084401,59226.0,59225.0,0.00025323]
[1724969821722,0.084401,59226.0,59213.0,0.3608]
[1724969821723,1.10652,59226.0,59213.0,0.3608]
[1724969822025,0.084413,59218.0,59210.0,0.3608]
[1724969822228,0.3608,59220.0,59218.0,0.084412]
[1724969822229,0.3598,59220.0,59218.0,0.084412]
[1724969822424,0.3598,59220.0,59210.0,0.3608]
[1724969822924,0.00025323,59221.0,59218.0,0.084412]
[1724969823114,0.09969019,59236.0,59217.0,0.43]
[1724969823313,0.09969019,59235.0,59229.0,0.445196]
[1724969823917,0.09969019,59235.0,59229.0,0.3608]
[1724969824316,0.09969019,59234.0,59229.0,0.3608]
[1724969824522,0.09969019,59234.0,59229.0,0.3618]
[1724969824916,0.001,59235.0,59229.0,0.3618]
[1724969825118,0.001,59235.0,59234.0,0.445189]
[1724969826234,0.012,59235.0,59234.0,0.445189]
[1724969826730,0.011,59235.0,59234.0,0.445189]
[1724969826927,0.011,59235.0,59229.0,0.002]
[1724969827321,0.09969019,59234.0,59229.0,0.001]
[1724969827724,0.09969019,59234.0,59233.0,0.084391]
[1724969828218,0.11169019,59235.0,59234.0,0.084389]
[1724969828418,0.012,59235.0,59234.0,0.445189]
[1724969828623,0.00025323,59238.0,59236.0,0.084387]
[1724969828931,0.0994425,59237.0,59236.0,0.084387]
[1724969829119,0.00025323,59238.0,59236.0,0.084387]
[1724969829120,0.09969584,59238.0,59237.0,0.084385]
[1724969829427,0.07418521,59238.0,59237.0,0.084385]
[1724969829628,0.07418383,59238.0,59237.0,0.084385]
[1724969830430,0.07418358,59238.0,59237.0,0.084385]
[1724969830729,0.07518358,59238.0,59237.0,0.085385]
[1724969831232,0.08518358,59238.0,59237.0,0.086385]
[1724969834022,0.08518358,59238.0,59237.0,0.002]
[1724969834323,0.21729863,59238.0,59237.0,0.002]
[1724969834524,0.08518358,59238.0,59237.0,0.002]
[1724969836136,0.08518165,59238.0,59237.0,0.002]
[1724969836330,0.0438533,59238.0,59237.0,0.002]
[1724969836533,0.12774879,59238.0,59237.0,0.002]
[1724969836736,0.08518163,59238.0,59237.0,0.002]
[1724969837429,0.08518163,59238.0,59216.0,0.3608]
[1724969837430,0.084401,59227.0,59216.0,0.3608]
[1724969837637,0.14923377,59226.0,59222.0,0.084406]
[1724969837837,0.1166337,59224.0,59218.0,0.43]
[1724969838133,0.14923377,59224.0,59222.0,0.3608]
[1724969838339,0.05997086,59223.0,59218.0,0.43]
[1724969838525,0.084409,59220.0,59217.0,0.3608]
[1724969838727,0.1166337,59218.0,59217.0,0.3608]
[1724969838926,0.14438286,59218.0,59217.0,0.3608]
[1724969839244,0.084415,59216.0,59215.0,0.00025323]
[1724969839426,0.084424,59210.0,59202.0,0.084435]
[1724969839629,0.14439586,59209.0,59202.0,0.084435]
[1724969839843,0.14439786,59208.0,59202.0,0.084435]
[1724969840026,0.14439786,59208.0,59199.0,0.3608]
[1724969840027,0.05997086,59207.0,59199.0,0.3608]
[1724969840226,0.05997086,59206.0,59199.0,0.3608]
[1724969840537,0.11577965,59210.0,59205.0,0.3608]
[1724969840735,0.03261863,59209.0,59205.0,0.3608]
[1724969841033,0.05999731,59208.0,59197.0,0.00025323]
[1724969841236,0.09981062,59201.0,59199.0,0.084439]
[1724969841429,0.09981062,59201.0,59200.0,0.3608]
[1724969841933,0.00025323,59206.0,59204.0,0.084432]
[1724969842139,0.00025323,59206.0,59205.0,0.3608]
[1724969842345,0.02762844,59206.0,59205.0,0.3608]
[1724969842829,0.50697323,59206.0,59205.0,0.3608]
[1724969843028,1.16696716,59206.0,59200.0,0.3608]
[1724969843341,0.084435,59202.0,59200.0,0.3608]
[1724969843529,0.08444,59199.0,59197.0,0.00025323]
[1724969843841,0.16748783,59199.0,59197.0,0.00025323]
[1724969844036,0.08304783,59198.0,59197.0,0.00025323]
[1724969844241,0.08444,59199.0,59197.0,0.00025323]
[1724969844537,0.50676,59198.0,59197.0,0.00025323]
[1724969844740,0.08684001,59199.0,59197.0,0.00025323]
[1724969844936,0.02738447,59198.0,59197.0,0.00125323]
[1724969845139,0.004,59198.0,59197.0,0.00225323]
[1724969845734,0.011,59198.0,59197.0,0.00225323]
[1724969846627,0.51776,59198.0,59197.0,0.00225323]
[1724969847330,1.11776,59198.0,59197.0,0.00225323]
[1724969847839,1.11776,59198.0,59189.0,0.3608]
[1724969848041,0.084446,59195.0,59189.0,0.3608]
[1724969848733,0.011,59198.0,59194.0,0.3608]
[1724969848933,0.004,59198.0,59197.0,0.43]
[1724969849129,0.3608,59205.0,59197.0,0.43]
[1724969849331,0.445231,59205.0,59197.0,0.514442]
[1724969849531,0.084433,59204.0,59197.0,0.514442]
[1724969849842,0.3608,59205.0,59189.0,0.001]
[1724969849843,0.13659103,59199.0,59189.0,0.001]
[1724969850033,0.3608,59190.0,59186.0,0.00025323]
[1724969850340,0.084455,59188.0,59183.0,0.3608]
[1724969850538,0.084449,59192.0,59175.0,0.3608]
[1724969850837,0.084464,59182.0,59176.0,0.084472]
[1724969851435,0.080464,59182.0,59181.0,0.3608]
[1724969851639,0.084465,59181.0,59177.0,0.08447]
[1724969852139,0.084465,59181.0,59180.0,0.3608]
[1724969853842,0.090465,59181.0,59180.0,0.3608]
[1724969854426,0.094465,59181.0,59180.0,0.3618]
[1724969854633,0.021,59181.0,59180.0,0.877266]
[1724969855136,0.021,59181.0,59180.0,1.238066]
[1724969855329,0.01749354,59181.0,59180.0,1.238066]
[1724969855933,0.01749354,59181.0,59180.0,0.808066]
[1724969857330,0.01749354,59181.0,59180.0,1.238066]
[1724969857844,0.01749354,59181.0,59180.0,1.744986]
[1724969858138,0.01749354,59181.0,59180.0,2.344986]
[1724969858927,0.01749354,59181.0,59180.0,1.744986]
[1724969860543,0.01749354,59181.0,59180.0,2.344986]
[1724969861041,0.01749354,59181.0,59180.0,1.238066]
[1724969861340,0.59514441,59202.0,59180.0,1.1536]
[1724969861530,0.084449,59192.0,59191.0,0.3608]
[1724969863942,0.084456,59187.0,59186.0,0.00025345]
[1724969864332,1.552136,59187.0,59177.0,0.3608]
[1724969864529,1.552136,59187.0,59172.0,0.445278]
[1724969864530,0.06619295,59179.0,59172.0,0.445278]
[1724969864733,0.3608,59181.0,59172.0,0.445278]
[1724969864734,0.06619295,59177.0,59172.0,0.445278]
[1724969864930,0.084476,59173.0,59172.0,0.3608]
[1724969866140,0.06622949,59173.0,59172.0,0.445278]
[1724969866333,0.00025345,59178.0,59172.0,0.445278]
[1724969866534,0.02739548,59177.0,59173.0,0.084476]
[1724969866736,0.00025345,59178.0,59173.0,0.084476]
[1724969867341,0.02739463,59177.0,59173.0,0.084476]
[1724969868340,0.02739463,59176.0,59173.0,0.084476]
[1724969868545,0.02739295,59175.0,59173.0,0.084476]
[1724969868844,0.001,59177.0,59173.0,0.084476]
[1724969869049,0.02739331,59176.0,59173.0,0.084476]
[1724969869248,0.001,59177.0,59173.0,0.084476]
[1724969869249,0.02739331,59175.0,59173.0,0.084476]
[1724969869445,0.001,59177.0,59173.0,0.084476]
[1724969869639,0.02739357,59176.0,59173.0,0.084476]
[1724969869840,0.002,59177.0,59176.0,0.084472]
[1724969870041,0.0293924,59177.0,59176.0,0.084472]
[1724969870345,0.02839227,59177.0,59176.0,0.084472]
[1724969870662,0.02739227,59177.0,59176.0,0.084472]
[1724969871042,0.03139227,59177.0,59176.0,0.084472]
[1724969871440,0.03139227,59177.0,59172.0,0.3608]
[1724969871641,0.02739227,59176.0,59172.0,0.3608]
[1724969871837,0.02739227,59176.0,59174.0,0.084475]
[1724969872149,0.02739227,59175.0,59174.0,0.084475]
[1724969872448,0.004,59177.0,59175.0,0.084474]
[1724969872449,0.009,59177.0,59175.0,0.084474]
[1724969872653,0.02739223,59176.0,59175.0,0.084474]
[1724969872950,0.02739223,59176.0,59175.0,0.445274]
[1724969873449,0.004,59177.0,59175.0,0.445274]
[1724969873450,0.004,59177.0,59176.0,0.084472]
[1724969873854,0.00025345,59178.0,59177.0,0.084471]
[1724969874949,0.00025345,59178.0,59175.0,0.3608]
[1724969875151,0.02739151,59177.0,59175.0,0.3608]
[1724969875344,0.02739151,59176.0,59175.0,0.3608]
[1724969875655,0.12705853,59177.0,59175.0,0.3608]
[1724969875852,0.12705853,59177.0,59175.0,0.445273]
[1724969876047,0.02739151,59176.0,59175.0,0.445273]
[1724969877051,0.02739151,59177.0,59175.0,0.445273]
[1724969877253,0.003,59176.0,59175.0,0.445273]
[1724969877447,0.03439151,59176.0,59175.0,0.445273]
[1724969878344,0.03439151,59176.0,59175.0,0.3608]
[1724969878657,0.03439151,59176.0,59175.0,0.445274]
[1724969878846,0.13329565,59193.0,59175.0,0.445274]
[1724969878847,0.09966702,59183.0,59177.0,0.084471]
[1724969879049,0.13569566,59199.0,59177.0,0.084471]
[1724969879050,0.09966702,59187.0,59182.0,0.7308]
[1724969879244,0.08325812,59188.0,59186.0,0.7308]
[1724969879543,0.08325812,59190.0,59189.0,0.084454]
[1724969879748,0.08325812,59191.0,59190.0,0.084452]
[1724969881053,0.09425812,59191.0,59190.0,0.085452]
[1724969881453,0.00025345,59196.0,59190.0,1.553292]
[1724969881649,0.1967,59215.0,59190.0,1.553292]
[1724969881650,0.06657791,59201.0,59195.0,0.3608]
[1724969881962,0.00657791,59204.0,59203.0,0.084434]
[1724969882154,0.08321741,59211.0,59209.0,0.084425]
[1724969882466,0.09966702,59217.0,59203.0,1.22752]
[1724969882467,0.08321741,59217.0,59211.0,0.084422]